fUSD/lending_fUSD_20250530
["ID","MTS","AMOUNT","RATE_DAILY","PERIOD"]
[363121309,1748590243878,-420.0,0.00021917,2]
[363121311,1748590243887,-420.0,0.00021917,2]
[363121312,1748590243897,-420.0,0.00021917,2]
[363121313,1748590243907,-1144.18,0.00021917,2]
[363121314,1748590243917,-1601.11,0.00021917,2]
[363121315,1748590243927,-500.0,0.00021917,2]
[363121316,1748590243937,-1189.21,0.00021917,2]
[363121317,1748590243946,-156.041516,0.00021917,2]
[363121318,1748590243956,-731.34,0.00021917,2]
[363121320,1748590243966,-420.0,0.00021917,2]
[363121321,1748590243975,-1732.766818,0.00021917,2]
[363121322,1748590243986,-1470.453943,0.00021917,2]
[363121323,1748590243997,-420.0,0.00021917,2]
[363121324,1748590244006,-505.93988734,0.00021917,2]
[363121325,1748590244016,-420.0,0.00021917,2]
[363121326,1748590244026,-442.55282783,0.00021917,2]
[363121327,1748590244036,-488.42,0.00021917,2]
[363121328,1748590244047,-420.0,0.00021917,2]
[363121329,1748590244059,-5021.40904304,0.00021917,2]
[363121330,1748590244068,-705.96,0.00021917,2]
[363121331,1748590244078,-420.0,0.00021917,2]
[363121332,1748590244088,-516.31259453,0.00021917,2]
[363121333,1748590244098,-1423.4,0.00021917,2]
[363121334,1748590244107,-572.26,0.00021917,2]
[363121335,1748590244117,-420.0,0.00021917,2]
[363121336,1748590244129,-931.8,0.00021917,2]
[363121337,1748590244140,-500.0,0.00021917,2]
[363121338,1748590244151,-500.0,0.00021917,2]
[363121339,1748590244161,-1423.01,0.00021917,2]
[363121340,1748590244171,-420.0,0.00021917,2]
[363121341,1748590244180,-420.0,0.00021917,2]
[363121342,1748590244191,-420.0,0.00021917,2]
[363121343,1748590244201,-781.02,0.00021917,2]
[363121344,1748590244210,-420.0,0.00021917,2]
[363121345,1748590244220,-420.0,0.00021917,2]
[363121346,1748590244229,-505.28940863,0.00021917,2]
[363121347,1748590244241,-420.0,0.00021917,2]
[363121348,1748590244250,-478.45,0.00021917,2]
[363121349,1748590244260,-420.0,0.00021917,2]
[363121350,1748590244270,-500.0,0.00021917,2]
[363121351,1748590244280,-500.0,0.00021917,2]
[363121352,1748590244289,-500.0,0.00021917,2]
[363121353,1748590244299,-1240.79,0.00021917,2]
[363121354,1748590244309,-500.0,0.00021917,2]
[363121355,1748590244319,-506.29,0.00021917,2]
[363121356,1748590244329,-502.71052606,0.00021917,2]
[363121357,1748590244338,-500.0,0.00021917,2]
[363121358,1748590244348,-784.13,0.00021917,2]
[363121359,1748590244357,-420.0,0.00021917,2]
[363121360,1748590244367,-420.0,0.00021917,2]
[363121361,1748590244376,-420.0,0.00021917,2]
[363121362,1748590244386,-420.0,0.00021917,2]
[363121363,1748590244395,-420.0,0.00021917,2]
[363121364,1748590244405,-238.75968,0.00021917,2]
[363121365,1748590244415,-1137.36,0.00021917,2]
[363121366,1748590244424,-568.89,0.00021917,2]
[363121367,1748590244434,-839.39,0.00021917,2]
[363121368,1748590244444,-500.0,0.00021917,2]
[363121369,1748590244454,-420.0,0.00021917,2]
[363121370,1748590244464,-826.81,0.00021917,2]
[363121371,1748590244474,-425.35899265,0.00021917,2]
[363121372,1748590244484,-783.19,0.00021917,2]
[363121373,1748590244493,-424.2585971,0.00021917,2]
[363121374,1748590244503,-420.0,0.00021917,2]
[363121375,1748590244512,-655.77,0.00021917,2]
[363121376,1748590244522,-420.0,0.00021917,2]
[363121377,1748590244532,-425.36307424,0.00021917,2]
[363121378,1748590244541,-500.0,0.00021917,2]
[363121379,1748590244551,-800.9,0.00021917,2]
[363121380,1748590244561,-1300.8,0.00021917,2]
[363121381,1748590244571,-2568.18,0.00021917,2]
[363121382,1748590244581,-676.43,0.00021917,2]
[363121383,1748590244591,-420.0,0.00021917,2]
[363121384,1748590244601,-613.75,0.00021917,2]
[363121385,1748590244611,-500.0,0.00021917,2]
[363121386,1748590244621,-420.0,0.00021917,2]
[363121387,1748590244630,-526.08178114,0.00021917,2]
[363121388,1748590244640,-500.0,0.00021917,2]
[363121389,1748590244650,-420.0,0.00021917,2]
[363121390,1748590244742,-624.3,0.00021917,2]
[363121391,1748590244754,-518.54,0.00021917,2]
[363121392,1748590244766,-1904.51,0.00021917,2]
[363121393,1748590244777,-575.87,0.00021917,2]
[363121394,1748590244787,-500.0,0.00021917,2]
[363121395,1748590244798,-1566.6,0.00021917,2]
[363121396,1748590244808,-502.07607281,0.00021917,2]
[363121397,1748590244818,-626.22,0.00021917,2]
[363121398,1748590244827,-420.0,0.00021917,2]
[363121399,1748590244838,-420.0,0.00021917,2]
[363121400,1748590244848,-500.0,0.00021917,2]
[363121401,1748590244859,-1086.74,0.00021917,2]
[363121402,1748590244869,-500.0,0.00021917,2]
[363121403,1748590244879,-883.32,0.00021917,2]
[363121404,1748590244889,-420.0,0.00021917,2]
[363121405,1748590244899,-500.0,0.00021917,2]
[363121406,1748590244909,-737.73,0.00021917,2]
[363121407,1748590244918,-420.0,0.00021917,2]
[363121408,1748590244928,-420.0,0.00021917,2]
[363121409,1748590244938,-434.96,0.00021917,2]
[363121410,1748590244948,-867.43,0.00021917,2]
[363121411,1748590244959,-420.0,0.00021917,2]
[363121412,1748590244969,-646.16,0.00021917,2]
[363121413,1748590244979,-551.64,0.00021917,2]
[363121414,1748590244991,-1038.16,0.00021917,2]
[363121415,1748590245001,-620.61,0.00021917,2]
[363121416,1748590245011,-502.86583596,0.00021917,2]
[363121417,1748590245020,-504.66539613,0.00021917,2]
[363121418,1748590245029,-719.65,0.00021917,2]
[363121419,1748590245039,-420.0,0.00021917,2]
[363121420,1748590245048,-420.0,0.00021917,2]
[363121421,1748590245058,-500.0,0.00021917,2]
[363121422,1748590245067,-947.06,0.00021917,2]
[363121423,1748590245076,-426.83256011,0.00021917,2]
[363121424,1748590245086,-420.0,0.00021917,2]
[363121425,1748590245096,-420.0,0.00021917,2]
[363121426,1748590245106,-275.77848789,0.00021917,2]
[363121427,1748590245116,-420.0,0.00021917,2]
[363121428,1748590245126,-523.52,0.00021917,2]
[363121429,1748590245135,-420.0,0.00021917,2]
[363121430,1748590245144,-420.0,0.00021917,2]
[363121431,1748590245154,-420.0,0.00021917,2]
[363121432,1748590245163,-1981.68,0.00021917,2]
[363121433,1748590245172,-420.0,0.00021917,2]
[363121434,1748590245182,-420.0,0.00021917,2]
[363121435,1748590245192,-473.65,0.00021917,2]
[363121436,1748590245201,-500.0,0.00021917,2]
[363121437,1748590245211,-420.0,0.00021917,2]
[363121438,1748590245220,-500.0,0.00021917,2]
[363121439,1748590245230,-500.0,0.00021917,2]
[363121440,1748590245244,-178.44810261,0.00021917,2]
[363121441,1748590245254,-501.66471748,0.00021917,2]
[363121442,1748590245264,-670.4,0.00021917,2]
[363121443,1748590245274,-500.0,0.00021917,2]
[363121444,1748590245285,-420.0,0.00021917,2]
[363121445,1748590245295,-936.66,0.00021917,2]
[363121446,1748590245305,-420.0,0.00021917,2]
[363121447,1748590245315,-500.0,0.00021917,2]
[363121448,1748590245325,-420.0,0.00021917,2]
[363121449,1748590245335,-420.0,0.00021917,2]
[363121450,1748590245345,-500.0,0.00021917,2]
[363121451,1748590245355,-577.46,0.00021917,2]
[363121452,1748590245365,-493.0,0.00021917,2]
[363121453,1748590245374,-420.0,0.00021917,2]
[363121454,1748590245385,-420.0,0.00021917,2]
[363121455,1748590245395,-420.0,0.00021917,2]
[363121456,1748590245405,-533.26195321,0.00021917,2]
[363121457,1748590245415,-420.0,0.00021917,2]
[363121458,1748590245425,-895.03,0.00021917,2]
[363121459,1748590245435,-420.0,0.00021917,2]
[363121460,1748590245444,-420.0,0.00021917,2]
[363121461,1748590245454,-960.19,0.00021917,2]
[363121462,1748590245464,-500.0,0.00021917,2]
[363121463,1748590245473,-497.32,0.00021917,2]
[363121464,1748590245487,-500.0,0.00021917,2]
[363121465,1748590245497,-500.0,0.00021917,2]
[363121466,1748590245506,-420.0,0.00021917,2]
[363121467,1748590245516,-566.12,0.00021917,2]
[363121468,1748590245527,-420.0,0.00021917,2]
[363121469,1748590245537,-420.0,0.00021917,2]
[363121470,1748590245546,-550.98,0.00021917,2]
[363121471,1748590245558,-420.0,0.00021917,2]
[363121472,1748590245567,-568.64442179,0.00021917,2]
[363121473,1748590245577,-1420.61,0.00021917,2]
[363121474,1748590245587,-471.82280488,0.00021917,2]
[363121475,1748590245596,-420.0,0.00021917,2]
[363121476,1748590245606,-420.0,0.00021917,2]
[363121477,1748590245616,-601.12,0.00021917,2]
[363121478,1748590245626,-420.0,0.00021917,2]
[363121479,1748590245636,-674.41,0.00021917,2]
[363121480,1748590245647,-801.07,0.00021917,2]
[363121481,1748590245658,-588.63,0.00021917,2]
[363121482,1748590245670,-420.0,0.00021917,2]
[363121483,1748590245680,-420.0,0.00021917,2]
[363121484,1748590245690,-426.0,0.00021917,2]
[363121485,1748590245699,-980.33,0.00021917,2]
[363121486,1748590245709,-502.76986875,0.00021917,2]
[363121487,1748590245719,-420.0,0.00021917,2]
[363121488,1748590245729,-1304.3,0.00021917,2]
[363121489,1748590245742,-856.02,0.00021917,2]
[363121490,1748590245755,-519.89,0.00021917,2]
[363121491,1748590245765,-420.0,0.00021917,2]
[363121492,1748590245775,-759.29,0.00021917,2]
[363121493,1748590245784,-510.59,0.00021917,2]
[363121494,1748590245795,-1091.32,0.00021917,2]
[363121495,1748590245804,-500.0,0.00021917,2]
[363121496,1748590245814,-420.0,0.00021917,2]
[363121497,1748590245823,-420.0,0.00021917,2]
[363121498,1748590245834,-420.0,0.00021917,2]
[363121499,1748590245844,-1030.65,0.00021917,2]
[363121500,1748590245853,-420.0,0.00021917,2]
[363121501,1748590245863,-556.09,0.00021917,2]
[363121502,1748590245872,-420.0,0.00021917,2]
[363121503,1748590245881,-420.0,0.00021917,2]
[363121504,1748590245890,-500.0,0.00021917,2]
[363121505,1748590245900,-420.0,0.00021917,2]
[363121506,1748590245909,-568.6,0.00021917,2]
[363121507,1748590245919,-420.0,0.00021917,2]
[363121508,1748590245929,-420.0,0.00021917,2]
[363121509,1748590245938,-420.0,0.00021917,2]
[363121510,1748590245947,-790.23,0.00021917,2]
[363121511,1748590245956,-420.0,0.00021917,2]
[363121512,1748590245966,-420.0,0.00021917,2]
[363121513,1748590245975,-500.0,0.00021917,2]
[363121514,1748590245986,-1569.12,0.00021917,2]
[363121515,1748590245995,-420.0,0.00021917,2]
[363121516,1748590246004,-420.0,0.00021917,2]
[363121517,1748590246014,-420.0,0.00021917,2]
[363121518,1748590246024,-420.0,0.00021917,2]
[363121519,1748590246033,-420.0,0.00021917,2]
[363121520,1748590246043,-2410.04,0.00021917,2]
[363121521,1748590246053,-500.0,0.00021917,2]
[363121522,1748590246062,-1558.43,0.00021917,2]
[363121523,1748590246072,-613.64,0.00021917,2]
[363121524,1748590246081,-420.0,0.00021917,2]
[363121525,1748590246092,-164.05034542,0.00021917,2]
[363121526,1748590246102,-1089.82,0.00021917,2]
[363121527,1748590246112,-364.32266137,0.00021917,2]
[363121528,1748590246121,-420.0,0.00021917,2]
[363121529,1748590246131,-451.07276102,0.00021917,2]
[363121530,1748590246142,-950.67,0.00021917,2]
[363121531,1748590246152,-420.0,0.00021917,2]
[363121532,1748590246162,-420.0,0.00021917,2]
[363121533,1748590246172,-460.21654168,0.00021917,2]
[363121534,1748590246182,-420.0,0.00021917,2]
[363121535,1748590246191,-420.0,0.00021917,2]
[363121537,1748590246201,-591.79,0.00021917,2]
[363121538,1748590246210,-420.0,0.00021917,2]
[363121539,1748590246220,-420.0,0.00021917,2]
[363121540,1748590246230,-1433.94,0.00021917,2]
[363121541,1748590246241,-455.81,0.00021917,2]
[363121542,1748590246251,-500.0,0.00021917,2]
[363121543,1748590246261,-423.50120856,0.00021917,2]
[363121544,1748590246270,-631.58,0.00021917,2]
[363121545,1748590246280,-1346.63,0.00021917,2]
[363121546,1748590246289,-524.84,0.00021917,2]
[363121547,1748590246299,-420.0,0.00021917,2]
[363121548,1748590246309,-420.0,0.00021917,2]
[363121549,1748590246318,-1233.24,0.00021917,2]
[363121550,1748590246331,-880.27,0.00021917,2]
[363121551,1748590246341,-500.0,0.00021917,2]
[363121552,1748590246351,-423.00893426,0.00021917,2]
[363121553,1748590246360,-420.0,0.00021917,2]
[363121554,1748590246370,-185.44131668,0.00021917,2]
[363121555,1748590246379,-420.0,0.00021917,2]
[363121556,1748590246388,-420.0,0.00021917,2]
[363121557,1748590246398,-1109.49,0.00021917,2]
[363121558,1748590246407,-420.0,0.00021917,2]
[363121559,1748590246416,-1323.48,0.00021917,2]
[363121560,1748590246426,-1774.93,0.00021917,2]
[363121561,1748590246436,-450.48,0.00021917,2]
[363121562,1748590246445,-1540.03,0.00021917,2]
[363121563,1748590246455,-426.3387184,0.00021917,2]
[363121564,1748590246464,-500.0,0.00021917,2]
[363121565,1748590246474,-584.29,0.00021917,2]
[363121566,1748590246486,-420.0,0.00021917,2]
[363121567,1748590246495,-420.0,0.00021917,2]
[363121568,1748590246505,-1097.4,0.00021917,2]
[363121569,1748590246515,-420.0,0.00021917,2]
[363121570,1748590246524,-363.95979493,0.00021917,2]
[363121571,1748590246534,-576.17,0.00021917,2]
[363121572,1748590246543,-530.75209017,0.00021917,2]
[363121573,1748590246553,-1804.84,0.00021917,2]
[363121574,1748590246563,-500.0,0.00021917,2]
[363121575,1748590246573,-472.63,0.00021917,2]
[363121576,1748590246582,-1514.44,0.00021917,2]
[363121577,1748590246591,-420.0,0.00021917,2]
[363121578,1748590246601,-420.0,0.00021917,2]
[363121579,1748590246611,-696.43,0.00021917,2]
[363121580,1748590246620,-420.0,0.00021917,2]
[363121581,1748590246630,-1146.95,0.00021917,2]
[363121582,1748590246640,-3333.04,0.00021917,2]
[363121583,1748590246649,-604.84,0.00021917,2]
[363121584,1748590246659,-420.0,0.00021917,2]
[363121585,1748590246668,-974.81,0.00021917,2]
[363121586,1748590246678,-1242.09,0.00021917,2]
[363121587,1748590246688,-420.0,0.00021917,2]
[363121588,1748590246697,-420.0,0.00021917,2]
[363121589,1748590246707,-420.0,0.00021917,2]
[363121590,1748590246717,-822.36,0.00021917,2]
[363121591,1748590246728,-420.0,0.00021917,2]
[363121592,1748590246739,-224.72883578,0.00021917,2]
[363121593,1748590246749,-2408.56,0.00021917,2]
[363121594,1748590246758,-1197.37,0.00021917,2]
[363121595,1748590246777,-420.0,0.00021917,2]
[363121596,1748590246797,-3156.51,0.00021917,2]
[363121597,1748590246811,-1184.4,0.00021917,2]
[363121598,1748590246821,-420.0,0.00021917,2]
[363121599,1748590246831,-672.89,0.00021917,2]
[363121600,1748590246841,-420.0,0.00021917,2]
[363121601,1748590246851,-771.51,0.00021917,2]
[363121602,1748590246860,-420.0,0.00021917,2]
[363121603,1748590246870,-605.68,0.00021917,2]
[363121604,1748590246880,-557.67,0.00021917,2]
[363121605,1748590246889,-1780.63,0.00021917,2]
[363121606,1748590246899,-10605.16,0.00021917,2]
[363121607,1748590246908,-420.0,0.00021917,2]
[363121608,1748590246918,-1468.56,0.00021917,2]
[363121609,1748590246927,-420.0,0.00021917,2]
[363121610,1748590246936,-500.0,0.00021917,2]
[363121611,1748590246946,-11600.64,0.00021917,2]
[363121612,1748590246956,-420.0,0.00021917,2]
[363121613,1748590246965,-420.0,0.00021917,2]
[363121614,1748590246975,-842.39,0.00021917,2]
[363121615,1748590246986,-403.29972029,0.00021917,2]
[363121616,1748590246996,-5180.0,0.00021917,2]
[363121617,1748590247005,-420.0,0.00021917,2]
[363121618,1748590247015,-420.0,0.00021917,2]
[363121619,1748590247024,-420.0,0.00021917,2]
[363121620,1748590247035,-968.89,0.00021917,2]
[363121621,1748590247045,-420.0,0.00021917,2]
[363121622,1748590247054,-420.0,0.00021917,2]
[363121623,1748590247064,-1120.83,0.00021917,2]
[363121624,1748590247073,-697.42,0.00021917,2]
[363121625,1748590247082,-420.0,0.00021917,2]
[363121626,1748590247091,-660.58,0.00021917,2]
[363121627,1748590247101,-1026.89,0.00021917,2]
[363121628,1748590247110,-420.0,0.00021917,2]
[363121629,1748590247120,-420.0,0.00021917,2]
[363121630,1748590247130,-420.0,0.00021917,2]
[363121631,1748590247140,-420.0,0.00021917,2]
[363121632,1748590247149,-13155.25,0.00021917,2]
[363121633,1748590247159,-713.15,0.00021917,2]
[363121634,1748590247169,-692.85,0.00021917,2]
[363121635,1748590247178,-1724.86,0.00021917,2]
[363121636,1748590247187,-420.0,0.00021917,2]
[363121637,1748590247196,-1106.21,0.00021917,2]
[363121638,1748590247206,-531.68,0.00021917,2]
[363121639,1748590247215,-1326.23,0.00021917,2]
[363121640,1748590247225,-420.0,0.00021917,2]
[363121641,1748590247234,-500.0,0.00021917,2]
[363121642,1748590247244,-500.0,0.00021917,2]
[363121643,1748590247253,-683.64,0.00021917,2]
[363121644,1748590247262,-494.81019021,0.00021917,2]
[363121645,1748590247271,-420.0,0.00021917,2]
[363121646,1748590247280,-604.29,0.00021917,2]
[363121647,1748590247290,-753.36,0.00021917,2]
[363121648,1748590247299,-5855.98,0.00021917,2]
[363121649,1748590247309,-420.0,0.00021917,2]
[363121650,1748590247318,-424.29767535,0.00021917,2]
[363121651,1748590247327,-547.19,0.00021917,2]
[363121652,1748590247336,-476.01,0.00021917,2]
[363121653,1748590247345,-428.36294838,0.00021917,2]
[363121654,1748590247355,-1043.93,0.00021917,2]
[363121655,1748590247364,-1202.88,0.00021917,2]
[363121656,1748590247372,-3433.57,0.00021917,2]
[363121657,1748590247382,-948.52,0.00021917,2]
[363121658,1748590247391,-986.56,0.00021917,2]
[363121659,1748590247400,-7751.08,0.00021917,2]
[363121660,1748590247410,-1051.07,0.00021917,2]
[363121661,1748590247419,-420.0,0.00021917,2]
[363121662,1748590247428,-2655.21,0.00021917,2]
[363121663,1748590247437,-420.0,0.00021917,2]
[363121664,1748590247446,-622.09,0.00021917,2]
[363121665,1748590247456,-420.0,0.00021917,2]
[363121666,1748590247466,-420.0,0.00021917,2]
[363121667,1748590247476,-2133.46,0.00021917,2]
[363121668,1748590247487,-1211.09,0.00021917,2]
[363121669,1748590247496,-500.0,0.00021917,2]
[363121670,1748590247506,-500.0,0.00021917,2]
[363121671,1748590247515,-420.0,0.00021917,2]
[363121672,1748590247525,-500.0,0.00021917,2]
[363121673,1748590247535,-1473.58,0.00021917,2]
[363121674,1748590247545,-769.37,0.00021917,2]
[363121675,1748590247555,-420.0,0.00021917,2]
[363121676,1748590247565,-1620.76,0.00021917,2]
[363121677,1748590247574,-660.31,0.00021917,2]
[363121678,1748590247584,-2887.34,0.00021917,2]
[363121679,1748590247594,-518.91,0.00021917,2]
[363121680,1748590247603,-437.18,0.00021917,2]
[363121681,1748590247614,-1128.28,0.00021917,2]
[363121682,1748590247624,-752.74,0.00021917,2]
[363121683,1748590247634,-420.0,0.00021917,2]
[363121684,1748590247643,-420.0,0.00021917,2]
[363121685,1748590247655,-840.22,0.00021917,2]
[363121686,1748590247664,-2084.4,0.00021917,2]
[363121687,1748590247674,-11523.73,0.00021917,2]
[363121688,1748590247684,-420.0,0.00021917,2]
[363121689,1748590247694,-427.44,0.00021917,2]
[363121690,1748590247704,-420.0,0.00021917,2]
[363121691,1748590247714,-2319.56,0.00021917,2]
[363121692,1748590247724,-690.98,0.00021917,2]
[363121693,1748590247734,-1312.21,0.00021917,2]
[363121694,1748590247744,-1893.06,0.00021917,2]
[363121695,1748590247757,-1738.65,0.00021917,2]
[363121696,1748590247767,-420.0,0.00021917,2]
[363121697,1748590247777,-1220.01,0.00021917,2]
[363121698,1748590247786,-420.0,0.00021917,2]
[363121699,1748590247797,-420.0,0.00021917,2]
[363121700,1748590247807,-425.08,0.00021917,2]
[363121701,1748590247816,-420.0,0.00021917,2]
[363121702,1748590247826,-420.0,0.00021917,2]
[363121703,1748590247838,-978.88,0.00021917,2]
[363121704,1748590247847,-6926.33,0.00021917,2]
[363121705,1748590247857,-1394.11,0.00021917,2]
[363121706,1748590247867,-141408.82,0.00021917,2]
[363121707,1748590247876,-35782.4,0.00021917,2]
[363121708,1748590247886,-1538.58,0.00021917,2]
[363121709,1748590247895,-420.0,0.00021917,2]
[363121710,1748590247904,-420.0,0.00021917,2]
[363121711,1748590247914,-5755.37,0.00021917,2]
[363121712,1748590247923,-993.08,0.00021917,2]
[363121713,1748590247933,-3277.47,0.00021917,2]
[363121714,1748590247942,-714.91,0.00021917,2]
[363121715,1748590247952,-420.0,0.00021917,2]
[363121716,1748590247961,-1001.99,0.00021917,2]
[363121717,1748590247971,-420.0,0.00021917,2]
[363121718,1748590247982,-500.0,0.00021917,2]
[363121719,1748590247992,-500.0,0.00021917,2]
[363121720,1748590248002,-3567.0,0.00021917,2]
[363121721,1748590248011,-1025.35,0.00021917,2]
[363121722,1748590248021,-1009.7,0.00021917,2]
[363121723,1748590248031,-451.47,0.00021917,2]
[363121724,1748590248041,-903.05,0.00021917,2]
[363121725,1748590248051,-552.1,0.00021917,2]
[363121726,1748590248060,-1015.37,0.00021917,2]
[363121727,1748590248070,-3457.04,0.00021917,2]
[363121728,1748590248080,-4654.54,0.00021917,2]
[363121729,1748590248089,-1720.1,0.00021917,2]
[363121730,1748590248099,-420.0,0.00021917,2]
[363121731,1748590248109,-420.0,0.00021917,2]
[363121732,1748590248119,-420.0,0.00021917,2]
[363121733,1748590248128,-420.0,0.00021917,2]
[363121734,1748590248138,-3322.8,0.00021917,2]
[363121735,1748590248148,-420.0,0.00021917,2]
[363121736,1748590248158,-420.0,0.00021917,2]
[363121737,1748590248167,-1068.41,0.00021917,2]
[363121738,1748590248177,-13379.42,0.00021917,2]
[363121739,1748590248188,-504.06406393,0.00021917,2]
[363121740,1748590248198,-7780.23,0.00021917,2]
[363121741,1748590248208,-503.71,0.00021917,2]
[363121742,1748590248218,-1537.0,0.00021917,2]
[363121743,1748590248228,-163.70265355,0.00021917,2]
[363121744,1748590248239,-673.02,0.00021917,2]
[363121745,1748590248250,-509.71,0.00021917,2]
[363121746,1748590248260,-420.0,0.00021917,2]
[363121747,1748590248271,-153.32218622,0.00021917,2]
[363121748,1748590248282,-2199.29,0.00021917,2]
[363121749,1748590248292,-2733.45,0.00021917,2]
[363121750,1748590248302,-1301.44,0.00021917,2]
[363121751,1748590248312,-420.0,0.00021917,2]
[363121752,1748590248322,-771.64,0.00021917,2]
[363121753,1748590248332,-1017.83,0.00021917,2]
[363121754,1748590248342,-585.89,0.00021917,2]
[363121755,1748590248352,-10264.09,0.00021917,2]
[363121756,1748590248362,-687.14,0.00021917,2]
[363121757,1748590248372,-1723.73,0.00021917,2]
[363121758,1748590248382,-420.0,0.00021917,2]
[363121759,1748590248392,-420.0,0.00021917,2]
[363121760,1748590248402,-765.2,0.00021917,2]
[363121761,1748590248412,-1930.37,0.00021917,2]
[363121762,1748590248422,-500.0,0.00021917,2]
[363121763,1748590248432,-940.86,0.00021917,2]
[363121764,1748590248442,-1495.49,0.00021917,2]
[363121765,1748590248452,-420.0,0.00021917,2]
[363121766,1748590248462,-1337.88,0.00021917,2]
[363121767,1748590248472,-637.36,0.00021917,2]
[363121768,1748590248481,-645.7,0.00021917,2]
[363121769,1748590248493,-151.0,0.00021917,2]
[363121770,1748590248503,-1876.38,0.00021917,2]
[363121771,1748590248513,-915.13,0.00021917,2]
[363121772,1748590248523,-3549.44,0.00021917,2]
[363121773,1748590248533,-851.48,0.00021917,2]
[363121774,1748590248543,-621.43,0.00021917,2]
[363121775,1748590248553,-420.0,0.00021917,2]
[363121776,1748590248562,-518.21428543,0.00021917,2]
[363121777,1748590248572,-3355.15,0.00021917,2]
[363121778,1748590248582,-420.0,0.00021917,2]
[363121779,1748590248593,-2012.3,0.00021917,2]
[363121780,1748590248604,-1538.23,0.00021917,2]
[363121781,1748590248614,-420.0,0.00021917,2]
[363121782,1748590248625,-1807.55,0.00021917,2]
[363121783,1748590248636,-775.41,0.00021917,2]
[363121784,1748590248647,-420.0,0.00021917,2]
[363121785,1748590248657,-1072.17,0.00021917,2]
[363121786,1748590248667,-12107.03,0.00021917,2]
[363121787,1748590248677,-420.0,0.00021917,2]
[363121788,1748590248687,-420.0,0.00021917,2]
[363121789,1748590248697,-500.06,0.00021917,2]
[363121790,1748590248708,-500.0,0.00021917,2]
[363121791,1748590248718,-1522.55,0.00021917,2]
[363121792,1748590248731,-1182.82,0.00021917,2]
[363121793,1748590248744,-1088.1,0.00021917,2]
[363121794,1748590248759,-860.93,0.00021917,2]
[363121795,1748590248770,-416.89624448,0.00021917,2]
[363121796,1748590248782,-1191.82,0.00021917,2]
[363121797,1748590248792,-500.0,0.00021917,2]
[363121798,1748590248803,-500.0,0.00021917,2]
[363121799,1748590248813,-4771.43,0.00021917,2]
[363121800,1748590248823,-420.0,0.00021917,2]
[363121801,1748590248834,-425.27,0.00021917,2]
[363121802,1748590248845,-978.82,0.00021917,2]
[363121803,1748590248856,-1332.76,0.00021917,2]
[363121804,1748590248866,-1938.24,0.00021917,2]
[363121805,1748590248876,-1149.31,0.00021917,2]
[363121806,1748590248886,-1115.65,0.00021917,2]
[363121807,1748590248896,-420.0,0.00021917,2]
[363121808,1748590248907,-510.95,0.00021917,2]
[363121809,1748590248917,-420.0,0.00021917,2]
[363121810,1748590248928,-503.81907225,0.00021917,2]
[363121811,1748590248938,-420.0,0.00021917,2]